bitfinex/quotes_BTCUSD_20251230
["timestamp","ask_amount","ask_price","bid_price","bid_amount"]
[1767115389496,0.5471217,88620.0,88608.0,0.01128566]
[1767115389695,0.5471217,88620.0,88609.0,0.01128553]
[1767115389900,0.25018,88625.0,88611.0,0.27319]
[1767115390497,0.01128375,88623.0,88611.0,0.27319]
[1767115390727,0.01128362,88624.0,88611.0,0.27319]
[1767115390933,0.01128375,88623.0,88611.0,0.27319]
[1767115391135,0.01128387,88622.0,88611.0,0.27319]
[1767115391343,0.01128375,88623.0,88611.0,0.27319]
[1767115391754,0.01128362,88624.0,88611.0,0.27319]
[1767115392008,0.01128375,88623.0,88611.0,0.27319]
[1767115392180,0.01128362,88624.0,88611.0,0.27319]
[1767115392343,0.31788137,88625.0,88611.0,0.27319]
[1767115392678,0.01128362,88624.0,88611.0,0.27319]
[1767115392923,0.01128375,88623.0,88611.0,0.27319]
[1767115393123,0.01128362,88624.0,88611.0,0.27319]
[1767115393271,0.02264349,88625.0,88611.0,0.27319]
[1767115393477,0.01132,88624.0,88613.0,0.27319]
[1767115395151,0.01132,88624.0,88613.0,0.28447502]
[1767115395541,0.01132,88624.0,88614.0,0.28447489]
[1767115395716,0.01132,88624.0,88614.0,0.27319]
[1767115398471,0.56982143,88624.0,88614.0,0.27319]
[1767115399367,0.01128375,88623.0,88614.0,0.27319]
[1767115399814,0.01128375,88623.0,88614.0,0.273388]
[1767115400230,0.01128375,88623.0,88614.0,0.000198]
[1767115400453,0.01128413,88620.0,88614.0,0.000198]
[1767115400859,0.01128387,88622.0,88614.0,0.000198]
[1767115401063,0.25010375,88623.0,88614.0,0.000198]
[1767115401261,0.01128375,88623.0,88614.0,0.000198]
[1767115402200,0.01128387,88622.0,88614.0,0.000198]
[1767115403624,0.01128375,88623.0,88614.0,0.000198]
[1767115403795,0.56982143,88624.0,88614.0,0.000198]
[1767115404009,0.55853781,88624.0,88614.0,0.000198]
[1767115404210,0.55853781,88624.0,88614.0,0.279338]
[1767115404633,0.29523535,88629.0,88614.0,0.279338]
[1767115404634,0.25010298,88629.0,88614.0,0.279338]
[1767115404847,0.14002505,88687.0,88614.0,0.279338]
[1767115404848,0.01128146,88641.0,88629.0,0.00055]
[1767115405192,0.23882,88647.0,88629.0,0.00055]
[1767115405193,0.01136,88642.0,88631.0,0.29042273]
[1767115405333,0.01136,88642.0,88633.0,0.27914]
[1767115405743,0.01128069,88647.0,88633.0,0.29042247]
[1767115405942,0.06105488,88678.0,88633.0,0.29042247]
[1767115405943,0.01128018,88651.0,88635.0,0.29042222]
[1767115406266,0.01127967,88655.0,88630.0,0.55857781]
[1767115406267,0.01127967,88655.0,88637.0,0.27914]
[1767115406461,0.01127967,88655.0,88640.0,0.54721781]
[1767115406462,0.01127993,88653.0,88640.0,0.54721781]
[1767115406664,0.54721781,88650.0,88640.0,0.27914]
[1767115406886,0.000208,88659.0,88650.0,0.000549]
[1767115407092,0.01184347,88659.0,88650.0,0.00050645]
[1767115407296,0.01184347,88659.0,88646.0,0.27914]
[1767115407504,0.0005643,88659.0,88646.0,0.27914]
[1767115408061,0.0005643,88659.0,88646.0,0.29042082]
[1767115408291,0.0005643,88659.0,88646.0,0.27914]
[1767115408503,0.01184347,88659.0,88646.0,0.27914]
[1767115408708,0.01184347,88659.0,88647.0,0.01136]
[1767115409140,0.0005643,88659.0,88649.0,0.54721781]
[1767115409578,0.01184347,88659.0,88649.0,0.54721781]
[1767115409746,0.0005643,88659.0,88649.0,0.54721781]
[1767115409952,5.73e-05,88659.0,88651.0,0.27914]
[1767115410153,5.73e-05,88659.0,88650.0,0.01128031]
[1767115410154,5.73e-05,88659.0,88655.0,0.27909809]
[1767115410559,0.00063829,88664.0,88657.0,0.33553661]
[1767115410769,0.00019612,88664.0,88660.0,0.27914]
[1767115411223,0.00019612,88664.0,88660.0,0.27909707]
[1767115412348,0.01127751,88672.0,88656.0,0.01127955]
[1767115412551,0.01127751,88672.0,88655.0,0.0790378]
[1767115412552,0.01136,88674.0,88661.0,0.27914]
[1767115412757,0.01136,88674.0,88663.0,0.06767181]
[1767115412961,0.01136,88674.0,88666.0,0.01127828]
[1767115413167,0.55881431,88680.0,88666.0,0.01127828]
[1767115413376,0.01127662,88679.0,88665.0,0.2904184]
[1767115413551,0.01127662,88679.0,88665.0,0.27914]
[1767115413709,0.01127675,88678.0,88665.0,0.27914]
[1767115413916,0.01127688,88677.0,88665.0,0.27914]
[1767115414319,0.01127713,88675.0,88665.0,0.27914]
[1767115414541,0.01127662,88679.0,88665.0,0.27914]
[1767115414749,0.5700908,88680.0,88665.0,0.27914]
[1767115415102,0.0676628,88675.0,88665.0,0.27914]
[1767115415305,0.011277,88676.0,88665.0,0.27914]
[1767115415494,0.06766335,88675.0,88663.0,0.01136]
[1767115415631,0.01127738,88673.0,88663.0,0.01136]
[1767115416036,0.01127751,88672.0,88663.0,0.01136]
[1767115416382,0.01127726,88674.0,88663.0,0.01136]
[1767115416569,0.01127738,88673.0,88663.0,0.01136]
[1767115416725,0.01127751,88672.0,88663.0,0.01136]
[1767115416991,0.01127738,88673.0,88663.0,0.01136]
[1767115417940,0.01127726,88674.0,88663.0,0.01136]
[1767115418423,0.05638906,88670.0,88663.0,0.01136]
[1767115418670,0.01127828,88666.0,88663.0,0.010812]
[1767115418861,0.54721781,88673.0,88648.0,0.27914]
[1767115418862,0.01127942,88657.0,88648.0,0.27914]
[1767115419067,0.22556814,88665.0,88648.0,0.2908163]
[1767115419068,0.54721781,88660.0,88648.0,0.2908163]
[1767115419249,0.55849685,88660.0,88648.0,0.2908163]
[1767115419449,0.54721781,88660.0,88648.0,0.2908163]
[1767115419797,0.54721781,88660.0,88648.0,0.02295687]
[1767115420004,0.01127802,88668.0,88654.0,0.27914]
[1767115420201,0.01127815,88667.0,88655.0,0.29046]
[1767115420401,0.01127802,88668.0,88656.0,0.0225591]
[1767115420633,0.01127815,88667.0,88657.0,0.27914]
[1767115421038,0.01127828,88666.0,88657.0,0.27914]
[1767115421538,0.0112784,88665.0,88657.0,0.27914]
[1767115421767,0.01127853,88664.0,88655.0,0.01132]
[1767115422062,0.01127866,88663.0,88655.0,0.01132]
[1767115422457,0.54721781,88665.0,88655.0,0.01132]
[1767115423071,0.55849621,88665.0,88655.0,0.29046]
[1767115423280,0.54721781,88665.0,88655.0,0.29046]
[1767115424691,0.55849621,88665.0,88655.0,0.29046]
[1767115425287,0.01127853,88664.0,88655.0,0.29046]
[1767115425492,0.01127904,88660.0,88655.0,0.01132]
[1767115425737,0.01127866,88663.0,88655.0,0.01132]
[1767115426054,0.01127891,88661.0,88655.0,0.01132]
[1767115426210,0.01127904,88660.0,88655.0,0.01132]
[1767115426530,0.01127891,88661.0,88655.0,0.01132]
[1767115426891,0.01127878,88662.0,88655.0,0.01116895]
[1767115427294,0.22556733,88666.0,88656.0,0.01132]
[1767115427481,0.22556733,88666.0,88636.0,0.29240209]
[1767115427482,0.05639957,88654.0,88636.0,0.29240209]
[1767115427675,0.05639957,88654.0,88635.0,0.10157061]
[1767115427676,0.54721781,88650.0,88638.0,0.01128184]
[1767115427899,0.54721781,88650.0,88639.0,0.28112]
[1767115428102,0.54666881,88650.0,88642.0,0.28112]
[1767115428340,0.54721781,88652.0,88642.0,0.28112]
[1767115428570,0.54721781,88652.0,88643.0,0.2924012]
[1767115428699,0.54721781,88652.0,88644.0,0.29244]
[1767115429040,0.54757389,88654.0,88644.0,0.29244]
[1767115429590,0.54721781,88660.0,88647.0,0.01128069]
[1767115429787,0.00010677,88660.0,88651.0,0.28112]
[1767115429992,0.01127789,88669.0,88653.0,0.29239993]
[1767115430188,0.54721781,88670.0,88657.0,0.28112]
[1767115430492,0.06766632,88671.0,88657.0,0.28112]
[1767115430689,0.01127777,88670.0,88657.0,0.28112]
[1767115430898,0.01127802,88668.0,88657.0,0.28112]
[1767115431143,0.01132,88673.0,88657.0,0.28112]
[1767115431144,0.0563883,88671.0,88657.0,0.28112]
[1767115431579,0.01127777,88670.0,88657.0,0.28112]
[1767115431857,0.01127789,88669.0,88657.0,0.28112]
[1767115432119,0.01127802,88668.0,88657.0,0.28112]
[1767115432305,0.0112784,88665.0,88652.0,0.29244]
[1767115432511,0.01127802,88668.0,88652.0,0.29244]
[1767115432744,0.29381,88676.0,88661.0,0.01127891]
[1767115432926,0.29381,88676.0,88662.0,0.01127878]
[1767115433119,0.30513,88673.0,88662.0,0.01127878]
[1767115433332,0.2940465,88680.0,88665.0,0.3375115]
[1767115433503,0.3053665,88680.0,88665.0,0.2923984]
[1767115433707,0.3053665,88680.0,88666.0,0.01127828]
[1767115433883,0.3053665,88680.0,88665.0,0.2923984]
[1767115434255,0.3053665,88680.0,88666.0,0.01127828]
[1767115434428,0.29381,88678.0,88663.0,0.01127866]
[1767115434589,0.29381,88678.0,88665.0,0.0112784]
[1767115434784,0.01127688,88677.0,88662.0,0.01127878]
[1767115435014,0.30508675,88678.0,88663.0,0.01127866]
[1767115435375,0.30508675,88678.0,88662.0,0.01127878]
[1767115435571,0.30508688,88677.0,88662.0,0.01127878]
[1767115435886,0.29381,88677.0,88663.0,0.01127866]
[1767115437128,0.30508688,88677.0,88662.0,0.01127878]
[1767115437334,0.01127713,88675.0,88660.0,0.30371904]
[1767115437680,0.02283299,88680.0,88653.0,0.28112]
[1767115437681,0.01127802,88668.0,88653.0,0.28112]
[1767115437832,0.000549,88660.0,88653.0,0.28122677]
[1767115438028,0.01127866,88663.0,88654.0,0.01132]
[1767115438232,0.29381,88662.0,88655.0,0.01132]
[1767115439239,0.30508878,88662.0,88655.0,0.01132]
[1767115439670,0.000549,88655.0,88653.0,0.01142677]
[1767115439877,0.000549,88655.0,88653.0,0.01087777]
[1767115440308,0.29381,88659.0,88653.0,0.01087777]
[1767115445375,0.29476,88664.0,88653.0,0.01087777]
[1767115446090,0.01127866,88663.0,88653.0,0.01087777]
[1767115447000,0.30603853,88664.0,88653.0,0.01087777]
[1767115447451,0.01127866,88663.0,88653.0,0.01087777]
[1767115447654,0.30603853,88664.0,88653.0,0.01087777]
[1767115447870,0.29476,88664.0,88653.0,0.01087777]
[1767115448629,0.30603853,88664.0,88653.0,0.01087777]
[1767115448827,0.29476,88664.0,88653.0,0.01087777]
[1767115450353,0.01127866,88663.0,88653.0,0.01087777]
[1767115450565,0.29476,88664.0,88653.0,0.01087777]
[1767115450912,0.30603853,88664.0,88653.0,0.01087777]
[1767115451399,0.01127866,88663.0,88653.0,0.01087777]
[1767115452303,0.01127878,88662.0,88653.0,0.01087777]
[1767115452502,0.01127866,88663.0,88653.0,0.01087777]
[1767115452503,0.55802029,88663.0,88653.0,0.01087777]
[1767115453132,0.01127878,88662.0,88653.0,0.01087777]
[1767115453489,0.55802029,88663.0,88653.0,0.01087777]
[1767115453683,0.01127878,88662.0,88653.0,0.01087777]
[1767115454179,0.85278029,88663.0,88653.0,0.01087777]
[1767115454690,0.84150163,88663.0,88653.0,0.01087777]
[1767115455090,0.85278029,88663.0,88653.0,0.01087777]
[1767115456250,0.84150163,88663.0,88653.0,0.01087777]
[1767115459674,0.85278029,88663.0,88653.0,0.01087777]
[1767115460078,0.01127878,88662.0,88653.0,0.01087777]
[1767115460399,0.84150163,88663.0,88653.0,0.01087777]
[1767115463565,0.29813,88676.0,88658.0,0.01127929]
[1767115463788,0.000211,88680.0,88674.0,0.27448]
[1767115464113,0.000211,88680.0,88660.0,0.54674163]
[1767115464114,0.29813,88670.0,88655.0,0.0001715]
[1767115464310,0.29813,88669.0,88656.0,0.01132]
[1767115464430,0.29813,88669.0,88657.0,0.01132]
[1767115464630,0.30940802,88668.0,88657.0,0.01132]
[1767115464837,0.01127815,88667.0,88657.0,0.01132]
[1767115465037,0.03064418,88695.0,88657.0,0.01132]
[1767115465038,0.01127433,88697.0,88674.0,0.01127726]
[1767115465261,0.01127433,88697.0,88687.0,0.05637746]
[1767115465262,0.00010681,88697.0,88687.0,0.05637746]
[1767115465458,0.00010681,88697.0,88687.0,0.0225956]
[1767115465657,0.00010681,88697.0,88694.0,0.01127471]
[1767115465858,8.1e-07,88697.0,88695.0,0.01132]
[1767115468638,8.1e-07,88697.0,88695.0,0.01058083]
[1767115471205,0.29813081,88697.0,88695.0,0.01047483]
[1767115471423,0.30940514,88697.0,88680.0,0.05638246]
[1767115471637,0.29813081,88697.0,88684.0,0.01127599]
[1767115471838,0.29813081,88697.0,88685.0,0.01127586]
[1767115472247,0.29813081,88697.0,88687.0,0.0112756]
[1767115472378,0.29813081,88697.0,88688.0,0.01132]
[1767115472582,8.1e-07,88697.0,88689.0,0.00168]
[1767115472780,8.1e-07,88697.0,88694.0,0.01127471]
[1767115472982,8.1e-07,88697.0,88695.0,0.01132]
[1767115473788,8.1e-07,88697.0,88695.0,0.013]
[1767115474602,8.1e-07,88697.0,88696.0,0.00168]
[1767115474808,8.1e-07,88697.0,88695.0,0.01132]
[1767115475009,8.1e-07,88697.0,88695.0,0.06769239]
[1767115479227,8.1e-07,88697.0,88696.0,0.00168]
[1767115479543,8.1e-07,88697.0,88695.0,0.06769239]
[1767115480307,0.0001715,88711.0,88703.0,0.01127357]
[1767115480649,0.0001715,88711.0,88702.0,0.01132]
[1767115481301,0.0001715,88711.0,88702.0,0.0225937]
[1767115481502,0.29813,88712.0,88703.0,0.01127357]
[1767115481707,0.0002537,88711.0,88702.0,0.0225937]
[1767115482077,0.0002537,88711.0,88703.0,0.01127357]
[1767115482292,0.0002537,88711.0,88702.0,0.02185458]
[1767115482293,0.0002537,88711.0,88706.0,0.01127319]
[1767115482508,0.0002537,88711.0,88704.0,0.01127344]
[1767115482701,0.0002537,88711.0,88706.0,0.01127319]
[1767115483317,0.0002537,88711.0,88707.0,0.01127306]
[1767115483517,0.0002537,88711.0,88708.0,0.01127294]
[1767115483766,0.0002537,88711.0,88709.0,0.01132]
[1767115483767,7e-07,88711.0,88709.0,0.01132]
[1767115485426,7e-07,88711.0,88709.0,0.0676839]
[1767115485633,7e-07,88711.0,88709.0,0.0694639]
[1767115485779,7e-07,88711.0,88709.0,0.0131]
[1767115486130,7e-07,88711.0,88710.0,0.00178]
[1767115486346,7e-07,88711.0,88709.0,0.01132]
[1767115489316,7e-07,88711.0,88709.0,0.011067]
[1767115489517,7e-07,88711.0,88708.0,0.01127294]
[1767115489518,0.27995,88710.0,88708.0,0.01132]
[1767115489713,0.2805,88708.0,88699.0,0.01127408]
[1767115489872,0.27995,88708.0,88700.0,0.01132]
[1767115490071,0.27995,88708.0,88700.0,0.02259395]
[1767115490616,0.27995,88708.0,88701.0,0.01127383]
[1767115490786,7e-07,88711.0,88701.0,0.01127383]
[1767115490990,0.27995,88710.0,88706.0,0.01127319]
[1767115491377,0.22955,88710.0,88707.0,0.01132]
[1767115491610,0.00018426,88713.0,88708.0,0.01132]
[1767115492257,0.28013426,88713.0,88708.0,0.01132]
[1767115492705,0.28013426,88713.0,88708.0,0.01077]
[1767115495177,0.26711967,88713.0,88708.0,0.02204294]
[1767115495402,0.26711967,88713.0,88708.0,0.01077]
[1767115496445,0.26711967,88713.0,88698.0,0.70588683]
[1767115496652,0.000549,88698.0,88695.0,0.04512]
[1767115496870,0.000549,88698.0,88696.0,0.01132]
[1767115497076,0.000549,88698.0,88696.0,0.06769231]
[1767115497313,0.27995,88705.0,88697.0,0.01127433]
[1767115497514,0.27995,88705.0,88700.0,0.01127395]
[1767115497730,0.27995,88714.0,88699.0,0.01127408]
[1767115497935,0.27995,88714.0,88700.0,0.01127395]
[1767115498077,0.29122217,88714.0,88699.0,0.01127408]
[1767115498284,0.27995,88714.0,88700.0,0.01127395]
[1767115498512,0.27995,88712.0,88698.0,0.01127421]
[1767115498711,0.27995,88711.0,88696.0,0.01132]
[1767115498931,0.27995,88708.0,88691.0,0.0112751]
[1767115499138,0.27900059,88697.0,88692.0,0.01132]
[1767115500172,0.27900059,88697.0,88692.0,0.02259497]
[1767115500404,0.27900059,88697.0,88692.0,0.01132]
[1767115501103,0.27900059,88697.0,88683.0,0.01127611]
[1767115501104,0.00055,88692.0,88684.0,0.04512]
[1767115501312,0.00055,88692.0,88685.0,0.01132]
[1767115501515,0.27900059,88697.0,88688.0,0.01127548]
[1767115501716,0.01127357,88703.0,88689.0,0.01127535]
[1767115501993,0.01127281,88709.0,88686.0,0.06765401]
[1767115501994,0.27975107,88722.0,88713.0,0.05636089]
[1767115502196,6.5e-07,88726.0,88718.0,0.01127166]
[1767115502488,6.5e-07,88726.0,88722.0,0.01127116]
[1767115502610,6e-07,88725.0,88723.0,0.01132]
[1767115502815,6e-07,88725.0,88723.0,0.06767459]
[1767115503030,6e-07,88725.0,88723.0,0.01132]
[1767115503273,0.00010739,88725.0,88723.0,0.01132]
[1767115503442,0.00010739,88725.0,88723.0,0.06767497]
[1767115504094,0.00010739,88725.0,88723.0,0.01132]
[1767115505617,0.00010739,88725.0,88723.0,0.06763146]
[1767115506605,0.00010739,88725.0,88723.0,0.06758849]
[1767115506806,0.00010739,88725.0,88723.0,0.01099393]
[1767115507371,0.00010739,88725.0,88723.0,0.06734852]
[1767115509249,0.00010739,88725.0,88723.0,0.01099393]
[1767115510407,0.27574,88724.0,88723.0,0.01099393]
[1767115510608,0.27574,88724.0,88723.0,3.93e-06]
[1767115510996,0.00010739,88725.0,88723.0,3.93e-06]
[1767115511308,0.0004,88728.0,88723.0,3.93e-06]
[1767115511309,0.27594835,88728.0,88725.0,0.000107]
[1767115511507,0.27594835,88728.0,88723.0,3.93e-06]
[1767115513890,0.00020835,88728.0,88723.0,3.93e-06]
[1767115514814,0.27594835,88728.0,88723.0,3.93e-06]
[1767115516156,0.27594835,88728.0,88710.0,0.7711498]
[1767115516157,0.27594835,88728.0,88709.0,0.0607479]
[1767115516376,0.012,88708.0,88658.0,0.01127929]
[1767115516579,1.64909193,88719.0,88658.0,0.01127929]
[1767115516580,0.01127751,88672.0,88658.0,0.00010681]
[1767115516786,0.01127866,88663.0,88658.0,0.00010681]
[1767115516986,0.31003789,88669.0,88656.0,0.0002871]
[1767115517184,0.01127815,88667.0,88656.0,0.00039389]
[1767115517391,0.01127878,88662.0,88655.0,0.00767734]
[1767115517592,0.000393,88656.0,88655.0,0.00767734]
[1767115517795,0.01138543,88662.0,88655.0,0.00767734]
[1767115518430,0.01127917,88659.0,88656.0,0.29664]
[1767115518626,0.01127904,88660.0,88656.0,0.29609]
[1767115519049,0.01127917,88659.0,88656.0,0.29609]
[1767115519255,0.01127904,88660.0,88657.0,0.01132]
[1767115519463,0.00010665,88662.0,88660.0,0.000549]
[1767115519862,0.01127866,88663.0,88660.0,0.000549]
[1767115520069,0.01127891,88661.0,88658.0,0.01132]
[1767115520276,0.01127917,88659.0,88644.0,0.34176]
[1767115520482,0.29876,88662.0,88646.0,0.29664]
[1767115520483,0.01127878,88662.0,88646.0,0.29664]
[1767115520699,0.0112784,88665.0,88648.0,0.01128057]
[1767115520909,0.0112784,88665.0,88649.0,0.29664]
[1767115521113,0.0112784,88665.0,88647.0,0.01128069]
[1767115521114,0.01127828,88666.0,88650.0,0.30792031]
[1767115521312,0.29876,88667.0,88651.0,0.01128018]
[1767115521518,0.29876,88667.0,88652.0,0.01132]
[1767115521735,0.01127828,88666.0,88652.0,0.01132]
[1767115521919,0.31003815,88667.0,88652.0,0.01132]
[1767115522192,0.29876,88667.0,88654.0,0.0112798]
[1767115522406,0.29876,88667.0,88653.0,0.01127993]
[1767115522616,0.29876,88667.0,88652.0,0.02260006]
[1767115522821,0.31003828,88666.0,88652.0,0.01132]
[1767115523084,0.01127866,88663.0,88652.0,0.01132]
[1767115523269,0.29876,88656.0,88653.0,0.01132]
[1767115524380,0.29876,88656.0,88645.0,0.01128095]
[1767115524583,0.29876,88656.0,88646.0,0.02260082]
[1767115524790,0.298211,88656.0,88649.0,0.01128044]
[1767115524994,0.31003828,88666.0,88649.0,0.06768265]
[1767115525372,0.31003828,88666.0,88650.0,0.01128031]
[1767115525573,0.29876,88672.0,88656.0,0.01127955]
[1767115525783,0.29876,88672.0,88657.0,0.01132]
[1767115525954,0.31003777,88670.0,88657.0,0.01132]
[1767115526160,0.29876,88668.0,88657.0,0.01132]
[1767115526841,0.31003802,88668.0,88657.0,0.01132]
[1767115527055,0.29876,88668.0,88657.0,0.01132]
[1767115529291,0.29876,88668.0,88657.0,0.02259942]
[1767115529462,0.29876,88668.0,88657.0,0.01132]
[1767115531108,0.29876,88668.0,88657.0,0.01127822]
[1767115531727,0.29876,88668.0,88657.0,0.02255764]
[1767115531901,0.29876,88673.0,88668.0,0.00055]
[1767115532132,0.29876,88673.0,88669.0,0.01132]
[1767115534586,0.29876,88673.0,88670.0,0.010771]
[1767115534787,0.31003738,88673.0,88670.0,0.010771]
[1767115534990,0.36642474,88673.0,88670.0,1e-06]
[1767115535216,0.29876,88671.0,88670.0,1e-06]
[1767115539093,0.310037,88676.0,88670.0,1e-06]
[1767115539940,0.31003713,88675.0,88670.0,1e-06]
[1767115540551,0.2255115,88688.0,88670.0,1e-06]
[1767115540552,0.0002871,88699.0,88685.0,0.30791586]
[1767115540750,0.0002871,88699.0,88686.0,0.308]
[1767115541069,0.0002871,88699.0,88687.0,0.3079156]
[1767115541273,0.0002871,88699.0,88688.0,0.01127548]
[1767115541621,0.0002871,88699.0,88687.0,0.3079156]
[1767115541813,0.00039393,88699.0,88687.0,0.3079156]
[1767115542017,0.00039393,88699.0,88688.0,0.01127548]
[1767115542226,0.00039393,88699.0,88690.0,0.01127522]
[1767115542428,0.00039393,88699.0,88689.0,0.01127535]
[1767115542634,0.00039393,88699.0,88691.0,0.0112751]
[1767115543023,0.00039393,88699.0,88689.0,0.01127535]
[1767115543252,0.00039393,88699.0,88688.0,0.30791548]
[1767115543538,0.00039393,88699.0,88691.0,0.0112751]
[1767115544300,0.00039393,88699.0,88692.0,0.01127497]
[1767115544514,0.00039393,88699.0,88693.0,0.01127484]
[1767115545155,0.00039393,88699.0,88694.0,0.01132]
[1767115545540,0.00039393,88699.0,88694.0,0.02259471]
[1767115545737,0.00039393,88699.0,88691.0,0.01132]
[1767115545738,0.29876,88693.0,88691.0,0.01132]
[1767115545942,0.29876,88693.0,88691.0,7.9e-07]
[1767115546697,0.01127421,88698.0,88689.0,0.01132]
[1767115546913,0.00039393,88699.0,88690.0,0.01132]
[1767115547519,0.00039393,88699.0,88690.0,0.02259522]
[1767115547939,0.00039393,88699.0,88691.0,0.0112751]
[1767115548218,0.00039393,88699.0,88690.0,0.02259522]
[1767115548431,0.00039393,88699.0,88691.0,0.0112751]
[1767115549052,0.00039393,88699.0,88692.0,0.01127497]
[1767115549220,0.26869813,88704.0,88692.0,0.01127497]
[1767115549428,0.26869813,88704.0,88690.0,0.02259522]
[1767115549633,0.26869813,88704.0,88690.0,0.02270205]
[1767115549838,0.26869813,88704.0,88691.0,0.0112751]
[1767115550016,0.26869813,88704.0,88690.0,0.01142683]
[1767115550218,0.26869813,88704.0,88692.0,0.01127497]
[1767115551223,0.26869813,88704.0,88691.0,0.0112751]
[1767115551224,0.26878993,88704.0,88691.0,0.0112751]
[1767115551466,0.26878993,88704.0,88692.0,0.01127497]
[1767115552195,0.55794158,88702.0,88690.0,0.01138418]
[1767115552338,0.84485788,88702.0,88690.0,0.01138418]
[1767115552888,0.85613158,88702.0,88690.0,0.01138418]
[1767115553096,0.01127383,88701.0,88690.0,0.01138418]
[1767115553346,0.84485788,88702.0,88690.0,0.01138418]
[1767115553949,0.29819,88702.0,88690.0,0.01138418]
[1767115554172,0.54666788,88700.0,88690.0,0.01138418]
[1767115554557,0.01127421,88698.0,88690.0,0.01138418]
[1767115554738,0.54666788,88700.0,88690.0,0.01083518]
[1767115555051,0.06764507,88699.0,88690.0,0.01083518]
[1767115555254,0.01127433,88697.0,88690.0,0.01083518]
[1767115555484,0.01127408,88699.0,88690.0,0.01083518]
[1767115555485,0.54666788,88700.0,88690.0,0.01083518]
[1767115556306,0.55794183,88700.0,88690.0,0.01083518]
[1767115556509,0.01127408,88699.0,88690.0,0.01083518]
[1767115556728,0.55794183,88700.0,88690.0,0.01083518]
[1767115557606,0.54666788,88700.0,88690.0,0.01083518]
[1767115558008,0.54666788,88700.0,88690.0,0.00010683]
[1767115558217,0.01127408,88699.0,88690.0,6.291e-05]
[1767115558413,0.61431196,88700.0,88676.0,0.011277]
[1767115558414,0.01127421,88698.0,88676.0,0.011277]
[1767115558633,0.54634259,88690.0,88681.0,0.29298637]
[1767115558833,0.54579359,88690.0,88682.0,0.01127624]
[1767115559079,0.54634259,88692.0,88682.0,0.01127624]
[1767115559233,0.54634259,88692.0,88681.0,0.34936784]
[1767115559234,0.54634259,88692.0,88681.0,0.28171]
[1767115559639,0.54634259,88692.0,88683.0,0.01127611]
[1767115559840,0.54634259,88692.0,88684.0,0.01132]
[1767115560704,0.01138096,88698.0,88684.0,0.01132]
[1767115560965,0.54634259,88694.0,88685.0,0.29782]
[1767115563667,0.54579259,88694.0,88685.0,0.30909586]
[1767115563870,0.54579259,88694.0,88685.0,0.29782]
[1767115564008,0.54579259,88694.0,88685.0,0.2972276]
[1767115564806,0.01127484,88693.0,88684.0,0.01132]
[1767115564977,0.0112751,88691.0,88684.0,0.01132]
[1767115565728,0.01127497,88692.0,88684.0,0.01132]
[1767115565929,0.000549,88684.0,88671.0,0.06125536]
[1767115566154,0.54634259,88683.0,88674.0,0.02259726]
[1767115566365,0.84433781,88690.0,88675.0,0.01127713]
[1767115566579,0.83313816,88690.0,88676.0,0.011277]
[1767115567204,0.83313816,88690.0,88674.0,0.02259726]
[1767115567419,0.84441338,88690.0,88675.0,0.01127713]
[1767115568619,0.28672,88690.0,88675.0,0.01127713]
[1767115568838,0.83313816,88690.0,88675.0,0.01127713]
[1767115569243,0.83313816,88690.0,88676.0,0.011277]
[1767115569443,0.83313816,88690.0,88675.0,0.01127713]
[1767115569844,0.83313816,88690.0,88676.0,0.011277]
[1767115570047,0.83313816,88690.0,88675.0,0.01127713]
[1767115570362,0.83313816,88690.0,88676.0,0.011277]
[1767115571697,0.83313816,88690.0,88675.0,0.01127713]
[1767115572031,0.83313816,88690.0,88676.0,0.011277]
[1767115572908,0.83313816,88690.0,88676.0,0.01098104]
[1767115573322,0.1,88692.0,88677.0,0.30909688]
[1767115573494,0.11127497,88692.0,88677.0,0.29782]
[1767115573713,0.11127497,88692.0,88677.0,0.30909688]
[1767115574873,0.54641816,88690.0,88677.0,0.30909688]
[1767115576260,0.54641816,88690.0,88677.0,0.29782]
[1767115576859,0.01127535,88689.0,88677.0,0.29782]
[1767115577075,0.0112751,88691.0,88677.0,0.29782]
[1767115577274,0.54641816,88690.0,88677.0,0.29782]
[1767115577851,0.55769338,88690.0,88677.0,0.29782]
[1767115578050,0.54641816,88690.0,88677.0,0.29782]
[1767115578655,0.54641816,88690.0,88677.0,0.30909688]
[1767115578859,0.01127459,88695.0,88674.0,0.02259726]
[1767115578860,0.01127205,88715.0,88694.0,0.28520471]
[1767115579086,0.29876,88717.0,88701.0,0.27393]
[1767115579087,0.01127192,88716.0,88701.0,0.27393]
[1767115579297,0.01127166,88718.0,88703.0,0.28520357]
[1767115579474,0.01127154,88719.0,88704.0,0.01127344]
[1767115579801,0.54647433,88720.0,88705.0,0.27393]
[1767115580173,0.01127179,88717.0,88705.0,0.27319093]
[1767115580356,0.01127154,88719.0,88705.0,0.27319093]
[1767115580983,0.55774574,88720.0,88705.0,0.28446425]
[1767115581414,0.54647433,88720.0,88705.0,0.28446425]
[1767115581592,0.54647433,88720.0,88706.0,0.01127319]
[1767115581807,0.54647433,88720.0,88706.0,0.28520319]
[1767115582639,0.54647433,88720.0,88707.0,0.01127306]
[1767115582843,5.617e-05,88720.0,88707.0,0.28520306]
[1767115583725,5.617e-05,88720.0,88707.0,0.27393]
[1767115583894,5.617e-05,88720.0,88707.0,0.28520306]
[1767115585081,5.617e-05,88720.0,88707.0,0.27393]
[1767115585483,5.617e-05,88720.0,88707.0,0.28520306]
[1767115586485,0.01132758,88720.0,88707.0,0.27393]
[1767115588286,5.617e-05,88720.0,88707.0,0.27393]
[1767115588491,5.617e-05,88720.0,88707.0,0.28520306]
[1767115588709,5.617e-05,88720.0,88707.0,0.27393]
[1767115588901,5.617e-05,88720.0,88707.0,0.28520306]
[1767115589272,5.617e-05,88720.0,88707.0,0.27393]
[1767115589672,0.01132758,88720.0,88707.0,0.27393]
[1767115590879,0.01127154,88719.0,88707.0,0.27393]
[1767115591518,0.000549,88707.0,88694.0,0.01127471]
[1767115591732,0.299309,88707.0,88699.0,0.01132]
[1767115591906,0.31003306,88707.0,88699.0,0.01132]
[1767115592126,0.01127332,88705.0,88699.0,0.01132]
[1767115592461,0.31003306,88707.0,88699.0,0.01132]
[1767115592670,0.31003306,88707.0,88699.0,0.01127811]
[1767115592878,0.29876,88707.0,88699.0,0.01127811]
[1767115593022,0.31003306,88707.0,88699.0,0.01127811]
[1767115593225,0.29876,88707.0,88699.0,0.01127811]
[1767115593426,0.31003306,88707.0,88699.0,0.011235]
[1767115593628,0.29876,88707.0,88699.0,0.011235]
[1767115593831,0.31003306,88707.0,88699.0,0.011235]
[1767115594011,0.31003306,88707.0,88693.0,0.01127484]
[1767115594213,0.29876,88707.0,88694.0,0.01132]